fUST/lending_fUST_20251214
["ID","MTS","AMOUNT","RATE_DAILY","PERIOD"]
[398476371,1765715028056,-979.3,0.00037935,60]
[398476372,1765715028084,-200.0,0.00037937,120]
[398476373,1765715028111,-1495.25165003,0.00037979,55]
[398476374,1765715028138,-1528.96489706,0.00038,30]
[398476375,1765715028164,-1000.0,0.00038,120]
[398476376,1765715028190,-400.0,0.00038,120]
[398476377,1765715028218,-500.0,0.00038,120]
[398476378,1765715028245,-1005.54948919,0.00038,30]
[398476379,1765715028272,-176.20478354,0.00038,120]
[398476380,1765715028300,-1738.0,0.00038,120]
[398476381,1765715028329,-4004.09474901,0.00038,120]
[398476382,1765715028358,-1000.0,0.00038,120]
[398476383,1765715028384,-3000.0,0.00038,120]
[398476384,1765715028410,-620.59126199,0.00038027,120]
[398476385,1765715028437,-979.3,0.00038035,60]
[398476386,1765715028463,-178.0,0.000381,120]
[398476387,1765715028494,-979.3,0.00038135,60]
[398476388,1765715028522,-414.0,0.00038158,30]
[398476389,1765715028548,-429.318,0.00038158,30]
[398476390,1765715028574,-160.39815138,0.00038158,30]
[398476391,1765715028602,-559.42175507,0.00038158,30]
[398476392,1765715028627,-250.0,0.00038158,30]
[398476393,1765715028652,-151.0,0.00038158,30]
[398476394,1765715028679,-500.0,0.00038158,30]
[398476395,1765715028707,-1001.0,0.00038158,30]
[398476396,1765715028734,-500.0,0.00038158,30]
[398476397,1765715028761,-3000.0,0.00038158,30]
[398476398,1765715028790,-250.0,0.00038158,30]
[398476399,1765715028816,-2000.0,0.00038158,30]
[398476400,1765715028844,-151.0,0.00038158,30]
[398476401,1765715028870,-156.587,0.00038158,30]
[398476402,1765715028896,-500.0,0.00038158,30]
[398476403,1765715028923,-500.0,0.00038158,30]
[398476404,1765715028948,-1001.0,0.00038158,30]
[398476405,1765715028973,-3000.0,0.00038158,30]
[398476406,1765715028999,-250.0,0.00038158,30]
[398476407,1765715029025,-2074.0,0.00038158,30]
[398476408,1765715029052,-151.0,0.00038158,30]
[398476409,1765715029079,-2393.84236168,0.00038158,30]
[398476410,1765715029105,-500.0,0.00038158,30]
[398476411,1765715029134,-500.0,0.00038158,30]
[398476412,1765715029162,-162.380719,0.00038158,30]
[398476413,1765715029192,-1001.0,0.00038158,30]
[398476414,1765715029219,-3000.0,0.00038158,30]
[398476415,1765715029246,-298.90597243,0.00038158,30]
[398476416,1765715029273,-151.0,0.00038158,30]
[398476417,1765715029298,-2150.738,0.00038158,30]
[398476418,1765715029327,-500.0,0.00038158,30]
[398476419,1765715029354,-500.0,0.00038158,30]
[398476420,1765715029381,-168.3888056,0.00038158,30]
[398476421,1765715029407,-2230.315306,0.00038158,30]
[398476422,1765715029433,-151.0,0.00038158,30]
[398476423,1765715029460,-3000.0,0.00038158,30]
[398476424,1765715029487,-500.0,0.00038158,30]
[398476425,1765715029513,-174.61919141,0.00038158,30]
[398476426,1765715029538,-2312.83697232,0.00038158,30]
[398476427,1765715029564,-151.0,0.00038158,30]
[398476428,1765715029590,-500.0,0.00038158,30]
[398476429,1765715029617,-3004.77225314,0.00038158,30]
[398476430,1765715029644,-500.0,0.00038158,30]
[398476431,1765715029670,-181.08010149,0.00038158,30]
[398476432,1765715029697,-2398.4119403,0.00038158,30]
[398476433,1765715029723,-151.0,0.00038158,30]
[398476434,1765715029750,-500.0,0.00038158,30]
[398476435,1765715029777,-500.0,0.00038158,30]
[398476436,1765715029807,-187.78006525,0.00038158,30]
[398476437,1765715029832,-2487.15318209,0.00038158,30]
[398476438,1765715029858,-151.0,0.00038158,30]
[398476439,1765715029885,-500.0,0.00038158,30]
[398476440,1765715029912,-194.72792766,0.00038158,30]
[398476441,1765715029938,-151.0,0.00038158,30]
[398476442,1765715029963,-151.0,0.00038158,30]
[398476443,1765715029991,-500.0,0.00038158,30]
[398476444,1765715030017,-500.0,0.00038158,30]
[398476445,1765715030046,-250.0,0.00038158,30]
[398476446,1765715030244,-2579.17784983,0.00038158,30]
[398476447,1765715030271,-151.0,0.00038158,30]
[398476448,1765715030298,-250.0,0.00038158,30]
[398476449,1765715030325,-151.0,0.00038158,30]
[398476450,1765715030353,-250.0,0.00038158,30]
[398476451,1765715030380,-250.0,0.00038158,30]
[398476452,1765715030408,-151.0,0.00038158,30]
[398476453,1765715030436,-250.0,0.00038158,30]
[398476454,1765715030463,-250.0,0.00038158,30]
[398476455,1765715030488,-151.0,0.00038158,30]
[398476456,1765715030515,-250.0,0.00038158,30]
[398476457,1765715030544,-250.0,0.00038158,30]
[398476458,1765715030571,-250.0,0.00038158,30]
[398476459,1765715030598,-250.0,0.00038158,30]
[398476460,1765715030624,-151.0,0.00038158,30]
[398476461,1765715030651,-250.0,0.00038158,30]
[398476462,1765715030678,-250.0,0.00038158,30]
[398476463,1765715030704,-250.0,0.00038158,31]
[398476464,1765715030731,-250.0,0.00038158,30]
[398476465,1765715030756,-151.0,0.00038158,30]
[398476466,1765715030787,-250.0,0.00038158,30]
[398476467,1765715030813,-3888.0,0.00038158,30]
[398476468,1765715030852,-250.0,0.00038158,30]
[398476469,1765715030883,-250.0,0.00038158,30]
[398476470,1765715030910,-251.04930722,0.00038158,32]
[398476471,1765715030937,-250.0,0.00038158,30]
[398476472,1765715030965,-151.0,0.00038158,30]
[398476473,1765715030992,-250.0,0.00038158,30]
[398476474,1765715031022,-4031.856,0.00038158,30]
[398476475,1765715031050,-250.0,0.00038158,30]
[398476476,1765715031079,-250.0,0.00038158,30]
[398476477,1765715031108,-250.0,0.00038158,30]
[398476478,1765715031138,-4181.034672,0.00038158,30]
[398476479,1765715031169,-250.0,0.00038158,30]
[398476480,1765715031197,-250.0,0.00038158,30]
[398476481,1765715031227,-250.0,0.00038158,30]
[398476482,1765715031260,-250.0,0.00038158,30]
[398476483,1765715031289,-250.0,0.00038158,30]
[398476484,1765715031318,-250.0,0.00038158,30]
[398476485,1765715031347,-250.0,0.00038158,30]
[398476486,1765715031376,-4335.73295486,0.00038158,30]
[398476487,1765715031405,-250.0,0.00038158,30]
[398476488,1765715031433,-250.0,0.00038158,30]
[398476489,1765715031463,-4496.15507419,0.00038158,30]
[398476490,1765715031496,-250.0,0.00038158,30]
[398476491,1765715031524,-250.0,0.00038158,30]
[398476492,1765715031553,-4662.51281194,0.00038158,30]
[398476493,1765715031581,-151.0,0.00038158,30]
[398476494,1765715031614,-250.0,0.00038158,30]
[398476495,1765715031643,-4835.02578598,0.00038158,30]
[398476496,1765715031671,-151.0,0.00038158,30]
[398476497,1765715031699,-5013.92174006,0.00038158,30]
[398476498,1765715031727,-151.0,0.00038158,30]
[398476499,1765715031755,-260.14946893,0.00038158,30]
[398476500,1765715031785,-151.0,0.00038158,30]
[398476501,1765715031812,-156.587,0.00038158,30]
[398476502,1765715031840,-162.380719,0.00038158,30]
[398476503,1765715031870,-168.3888056,0.00038158,30]
[398476504,1765715031899,-174.61919141,0.00038158,30]
[398476505,1765715031933,-181.08010149,0.00038158,30]
[398476506,1765715031961,-187.78006525,0.00038158,30]
[398476507,1765715031989,-194.72792766,0.00038158,30]
[398476508,1765715032016,-205.54431,0.000382,120]
[398476509,1765715032045,-200.0,0.000382,120]
[398476510,1765715032075,-200.0,0.000382,120]
[398476511,1765715032106,-243.88944,0.000382,120]
[398476512,1765715032139,-1041.20288,0.000382,120]
[398476513,1765715032172,-979.3,0.00038235,60]
[398476514,1765715032205,-200.0,0.00038247,90]
[398476515,1765715032243,-700.0,0.00038274,14]
[398476516,1765715032280,-200.0,0.00038279,120]
[398476517,1765715032308,-200.0,0.00038279,120]
[398476518,1765715032335,-200.0,0.00038279,120]
[398476519,1765715032362,-200.0,0.00038279,120]
[398476520,1765715032393,-200.0,0.0003828,120]
[398476521,1765715032422,-979.3,0.00038335,60]
[398476522,1765715032452,-2346.39,0.00038356,120]
[398476523,1765715032480,-1000.0,0.00038356,120]
[398476524,1765715032508,-294.020285,0.00038356,120]
[398476525,1765715032535,-294.020285,0.00038356,120]
[398476526,1765715032562,-294.020285,0.00038356,120]
[398476527,1765715032589,-294.020285,0.00038356,120]
[398476528,1765715032616,-294.020285,0.00038356,120]
[398476529,1765715032643,-294.020285,0.00038356,120]
[398476530,1765715032670,-294.020285,0.00038356,120]
[398476531,1765715032697,-294.020285,0.00038356,120]
[398476532,1765715032723,-294.020285,0.00038356,120]
[398476533,1765715032750,-294.020285,0.00038356,120]
[398476534,1765715032777,-294.020285,0.00038356,120]
[398476535,1765715032808,-294.020285,0.00038356,120]
[398476536,1765715032834,-294.020285,0.00038356,120]
[398476537,1765715032862,-294.020285,0.00038356,120]
[398476538,1765715032888,-294.020285,0.00038356,120]
[398476539,1765715032914,-294.020285,0.00038356,120]
[398476540,1765715033203,-294.020285,0.00038356,120]
[398476541,1765715033240,-294.020285,0.00038356,120]
[398476542,1765715033269,-294.020285,0.00038356,120]
[398476543,1765715033298,-294.020294,0.00038356,120]
[398476544,1765715033327,-979.3,0.00038435,120]
[398476545,1765715033356,-200.0,0.00038439,120]
[398476546,1765715033385,-703904.1264,0.0003844,30]
[398476547,1765715033414,-200.0,0.00038492,120]
[398476548,1765715033442,-200.0,0.00038495,120]
[398476549,1765715033470,-2031.10906555,0.000385,120]
[398476550,1765715033498,-979.3,0.00038535,120]
[398476551,1765715033525,-979.3,0.00038635,120]
[398476552,1765715033553,-311.2630419,0.0003867,120]
[398476553,1765715033582,-200.0,0.00038698,120]
[398476554,1765715033610,-178.0,0.000387,120]
[398476555,1765715033639,-200.0,0.00038715,120]
[398476556,1765715033668,-979.3,0.00038735,120]
[398476557,1765715033695,-2109.26551328,0.000388,90]
[398476558,1765715033722,-979.3,0.00038835,120]
[398476559,1765715033750,-200.0,0.00038879,120]
[398476560,1765715033779,-200.0,0.000389,120]
[398476561,1765715033810,-979.3,0.00038935,120]
[398476562,1765715033839,-5000.0,0.00038972,30]
[398476563,1765715033867,-1000.0,0.00039,120]
[398476564,1765715033895,-500.0,0.00039,120]
[398476565,1765715033923,-303.32916585,0.00039,120]
[398476566,1765715033952,-800.0,0.00039,120]
[398476567,1765715033981,-979.3,0.00039035,120]
[398476568,1765715034010,-151.0,0.00039041,120]
[398476569,1765715034040,-151.0,0.00039041,120]
[398476570,1765715034070,-151.00015737,0.00039041,120]
[398476571,1765715034098,-700.0,0.00039096,14]
[398476572,1765715034128,-277.05494,0.000391,120]
[398476573,1765715034158,-200.0,0.0003911,51]
[398476574,1765715034189,-979.3,0.00039135,120]
[398476575,1765715034219,-979.3,0.00039235,120]
[398476576,1765715034248,-178.0,0.000393,120]
[398476577,1765715034275,-200.0,0.00039302,120]
[398476578,1765715034304,-979.3,0.00039335,120]
[398476579,1765715034332,-200.0,0.00039382,120]
[398476580,1765715034361,-500.0,0.000394,120]
[398476581,1765715034390,-979.3,0.00039435,120]
[398476582,1765715034420,-2346.39,0.00039452,120]
[398476583,1765715034450,-155.0697888,0.00039452,30]
[398476584,1765715034478,-597.5655512,0.00039452,30]
[398476585,1765715034506,-165.4908484,0.00039452,30]
[398476586,1765715034533,-302.2567273,0.00039452,30]
[398476587,1765715034560,-597.5655512,0.00039452,30]
[398476588,1765715034588,-165.4908484,0.00039452,30]
[398476589,1765715034615,-302.2567273,0.00039452,30]
[398476590,1765715034643,-585.2384207,0.00039452,30]
[398476591,1765715034671,-165.4908484,0.00039452,30]
[398476592,1765715034697,-165.4908484,0.00039452,30]
[398476593,1765715034723,-604.5134546,0.00039452,30]
[398476594,1765715034749,-165.4908484,0.00039452,30]
[398476595,1765715034775,-205.54431,0.000395,120]
[398476596,1765715034806,-979.3,0.00039535,120]
[398476597,1765715034834,-200.0,0.00039573,120]
[398476598,1765715034864,-979.3,0.00039635,120]
[398476599,1765715034892,-200.0,0.00039691,120]
[398476600,1765715034920,-200.0,0.00039723,120]
[398476601,1765715034947,-979.3,0.00039735,120]
[398476602,1765715034979,-200.0,0.00039788,120]
[398476603,1765715035008,-1235.33391169,0.000398,30]
[398476604,1765715035037,-979.3,0.00039835,120]
[398476605,1765715035066,-200.0,0.00039868,120]
[398476606,1765715035095,-200.0,0.00039869,120]
[398476607,1765715035126,-178.0,0.000399,120]
[398476608,1765715035154,-700.0,0.00039918,14]
[398476609,1765715035185,-979.3,0.00039935,120]
[398476610,1765715035218,-1000.0,0.0004,120]
[398476611,1765715035247,-500.0,0.0004,120]
[398476612,1765715035276,-500.0,0.0004,50]
[398476613,1765715035304,-200.0,0.0004,120]
[398476614,1765715035332,-1359806.62825262,0.0004,120]
[398476615,1765715041575,150.0,0.00010825,2]
[398476616,1765715042004,150.0,0.00011341,2]
[398476617,1765715042481,150.0,0.00011856,2]
[398476618,1765715048579,-1481.09,0.00032877,10]
[398476619,1765715048614,-1234.24,0.00032877,10]
[398476620,1765715048652,-213.0,0.00035,120]
[398476621,1765715048693,-2133557.08185895,0.0004,120]
[398476622,1765715048730,-1996.62081552,0.0004,120]
[398476623,1765715048773,-1135.19128944,0.0004,30]
[398476624,1765715048824,-631.73204814,0.0004,120]
[398476625,1765715048872,-1697.48400499,0.0004,120]
[398476626,1765715048909,-813.15464473,0.0004,120]
[398476627,1765715048939,-276.9565243,0.0004,10]
[398476628,1765715048969,-218.72447199,0.0004,100]
[398476629,1765715048998,-1099.21046073,0.0004,120]
[398476630,1765715049027,-446.21138338,0.0004,30]
[398476631,1765715049056,-177.23790824,0.0004,120]
[398476632,1765715049085,-800.0,0.0004,120]
[398476633,1765715049114,-1007.68012632,0.0004,120]
[398476634,1765715049145,-5000.0,0.0004,90]
[398476635,1765715049178,-151.25748504,0.0004,120]
[398476636,1765715049215,-1848063.12697823,0.0004,120]
[398476637,1765715052425,-25720.0,0.000392,120]
[398476638,1765715052456,-744394.37229399,0.0004,120]
[398476639,1765715052485,-198.08824625,0.0004,10]
[398476640,1765715052512,-2000.0,0.0004,120]
[398476641,1765715052540,-660.48641455,0.00040027,120]
[398476642,1765715052571,-979.3,0.00040035,120]
[398476643,1765715052599,-979.3,0.00040135,120]
[398476644,1765715052625,-1350.079786,0.00040183,120]
[398476645,1765715052652,-979.3,0.00040235,120]
[398476646,1765715052679,-165.4908484,0.00040274,30]
[398476647,1765715052706,-290.4050467,0.00040274,30]
[398476648,1765715052736,-155.3542036,0.00040274,30]
[398476649,1765715052765,-979.3,0.00040335,120]
[398476650,1765715052798,-200.0,0.000404,120]
[398476651,1765715052824,-200.0,0.000404,120]
[398476652,1765715052856,-1041.20288,0.000404,120]
[398476653,1765715053120,-1000.0,0.00040421,60]
[398476654,1765715053153,-1000.0,0.00040421,60]
[398476655,1765715053184,-579.0,0.00040421,60]
[398476656,1765715053214,-979.3,0.00040435,120]
[398476657,1765715053243,-1300.0,0.000405,120]
[398476658,1765715053272,-979.3,0.00040535,120]
[398476659,1765715053300,-2346.39,0.00040547,120]
[398476660,1765715053344,-178.0,0.000406,120]
[398476661,1765715053379,-979.3,0.00040635,120]
[398476662,1765715053409,-3015.0,0.0004068,20]
[398476663,1765715053441,-979.3,0.00040735,120]
[398476664,1765715053470,-609.0,0.00040822,120]
[398476665,1765715053501,-979.3,0.00040835,120]
[398476666,1765715053530,-979.3,0.00040935,120]
[398476667,1765715053560,-1225.97608474,0.00041,120]
[398476668,1765715053590,-1675.31,0.00041,120]
[398476669,1765715053620,-1000.0,0.00041,120]
[398476670,1765715053651,-3199902.84419577,0.00041,10]
[398476675,1765715107031,150.0,0.00010821,2]
[398476676,1765715107417,150.0,0.00011336,2]
[398476677,1765715107978,150.0,0.00011851,2]
[398476678,1765715108334,150.0,0.00012367,2]
[398476679,1765715108748,150.0,0.00012882,2]
[398476680,1765715109179,150.0,0.00013397,2]
[398476685,1765715173191,150.0,0.00010809,2]
[398476686,1765715173636,150.0,0.00011323,2]
[398476687,1765715174097,150.0,0.00011838,2]
[398476688,1765715174507,150.0,0.00012353,2]
[398476689,1765715174919,150.0,0.00012867,2]
[398476690,1765715175357,150.0,0.00013382,2]
[398476691,1765715175781,150.0,0.00013897,2]
[398476699,1765715303521,150.0,0.00010804,2]
[398476700,1765715303995,150.0,0.00011319,2]
[398476701,1765715304479,150.0,0.00011833,2]
[398476702,1765715304805,150.0,0.00012348,2]
[398476704,1765715305297,150.0,0.00012862,2]
[398476705,1765715305770,150.0,0.00013377,2]
[398476730,1765715359860,178.380711,8.839e-05,2]
[398476731,1765715369966,150.0,0.00010233,2]
[398476732,1765715370374,150.0,0.0001072,2]
[398476733,1765715370760,150.0,0.00011207,2]
[398476770,1765715432050,-670.0,0.00017078,2]
[398476771,1765715432060,-330.0,0.00017078,2]
[398476775,1765715435544,150.0,0.00010261,2]
[398476776,1765715435945,150.0,0.0001075,2]
[398476777,1765715436444,150.0,0.00011239,2]
[398476778,1765715436808,150.0,0.00011727,2]
[398476779,1765715437230,150.0,0.00012216,2]
[398476783,1765715437652,150.0,0.00012705,2]
[398476806,1765715438081,-460.3733193,0.00017078,2]
[398476808,1765715438091,-173.58824157,0.00017528,2]
[398476810,1765715438100,-178.380711,0.00017677,2]
[398476812,1765715438109,-98.38873547,0.00017978,2]
[398477116,1765715443068,-1200.0,0.00017978,2]
[398477118,1765715443077,-22938.01565452,0.00017979,2]
[398477510,1765715453052,-297150.83731827,0.00017979,2]
[398477511,1765715453077,-1513.24810086,0.00017979,2]
[398477512,1765715453830,184.80938643,0.00015033,2]
[398477513,1765715462400,150.23,0.00012,2]
[398477514,1765715462694,150.23,0.000121,2]
[398477515,1765715463089,150.23,0.000122,2]
[398477516,1765715463551,150.23,0.000123,2]
[398477517,1765715464662,150.23,0.000124,2]
[398477518,1765715464992,150.23,0.000125,2]
[398477519,1765715465298,150.23,0.000126,2]
[398477520,1765715465641,150.23,0.000127,2]
[398477521,1765715465966,150.23,0.000128,2]
[398477522,1765715466251,150.23,0.000129,2]
[398477523,1765715466563,150.23,0.00013,2]
[398477524,1765715466864,150.23,0.000131,2]
[398477525,1765715467242,150.23,0.000132,2]
[398477526,1765715467577,150.23,0.000133,2]
[398477527,1765715468575,150.23,0.000134,2]
[398477528,1765715468935,150.23,0.000135,2]
[398477529,1765715469316,150.23,0.000136,2]
[398477530,1765715469709,150.23,0.000137,2]
[398477531,1765715470031,150.23,0.000138,2]
[398477532,1765715470349,150.23,0.000139,2]
[398477533,1765715470755,150.23,0.00014,2]
[398477536,1765715501640,150.0,0.00010255,2]
[398477537,1765715502061,150.0,0.00010744,2]
[398477538,1765715502483,175.37,0.00011232,2]
[398477539,1765715503353,233.83,0.0001172,2]
[398477540,1765715503396,292.28,0.00012209,2]
[398477541,1765715503788,350.74,0.00012697,2]
[398477542,1765715504195,409.2,0.00013185,2]
[398477543,1765715504600,467.65,0.00013674,2]
[398477544,1765715505005,526.11,0.00014162,2]
[398477545,1765715505423,584.56,0.0001465,2]
[398477546,1765715522550,154.65,0.000134,2]
[398477547,1765715522885,154.65,0.000135,2]
[398477548,1765715523238,154.65,0.000135,2]
[398477549,1765715523619,154.65,0.000135,2]
[398477550,1765715524656,154.65,0.000136,2]
[398477551,1765715524706,154.65,0.000136,2]
[398477552,1765715524865,154.65,0.000136,2]
[398477553,1765715525024,154.65,0.000137,2]
[398477554,1765715525385,154.65,0.000137,2]
[398477555,1765715525687,154.65,0.000137,2]
[398477556,1765715525989,154.65,0.000138,2]
[398477557,1765715526285,154.65,0.000138,2]
[398477558,1765715526657,154.65,0.000138,2]
[398477559,1765715526984,154.65,0.000139,2]
[398477560,1765715527289,154.65,0.000139,2]
[398477561,1765715527692,154.65,0.000139,2]
[398477562,1765715528009,154.65,0.00014,2]
[398477563,1765715528329,154.65,0.00014,2]
[398477564,1765715559595,3876.57,0.00016,2]
[398477565,1765715559617,359.43,0.00016,2]
[398477567,1765715576708,150.0,0.00010261,2]
[398477568,1765715576967,150.0,0.0001075,2]
[398477569,1765715577391,158.4,0.00011238,2]
[398477570,1765715577935,211.19,0.00011727,2]
[398477571,1765715578375,263.99,0.00012216,2]
[398477572,1765715578763,316.79,0.00012704,2]
[398477573,1765715579185,369.59,0.00013193,2]
[398477574,1765715579593,422.39,0.00013682,2]
[398477575,1765715580013,475.19,0.0001417,2]
[398477576,1765715580423,527.98,0.00014659,2]
[398477578,1765715650456,150.0,9.168e-05,2]
[398477579,1765715650854,150.0,9.605e-05,2]
[398477580,1765715651285,150.0,0.00010041,2]
[398477581,1765715651670,150.0,0.00010478,2]
[398477582,1765715652095,150.0,0.00010914,2]
[398477583,1765715652510,150.0,0.00011351,2]
[398477584,1765715652930,150.0,0.00011787,2]
[398477587,1765715883336,276.66,9.99e-05,2]
[398477588,1765715884017,276.66,9.99e-05,14]
[398477589,1765715884432,276.65,9.99e-05,2]
[398477592,1765716004503,190.137416,0.00013699,2]
[398477598,1765716292939,150.0,9.008e-05,2]
[398477599,1765716293814,150.0,9.437e-05,2]
[398477600,1765716294250,150.0,9.866e-05,2]
[398477604,1765716350737,-291.0,0.00016975,2]
[398477605,1765716350766,-300.0,0.00016975,2]
[398477606,1765716350796,-1200.0,0.00016975,2]
[398477607,1765716350825,-500.0,0.00016976,2]
[398477608,1765716350851,-500.0,0.00016976,2]
[398477609,1765716350879,-450.15916011,0.00016976,2]
[398477610,1765716350906,-500.0,0.00016976,2]
[398477611,1765716350934,-500.0,0.00016976,2]
[398477612,1765716350964,-500.0,0.00016976,2]
[398477613,1765716350992,-17.69167978,0.00016976,2]
[398477614,1765716353538,-482.30832022,0.00016976,2]
[398477615,1765716353571,-500.0,0.00016976,2]
[398477616,1765716353600,-500.0,0.00016976,2]
[398477617,1765716353629,-500.0,0.00016976,2]
[398477618,1765716353658,-500.0,0.00016976,2]
[398477619,1765716353687,-206.30326652,0.00016976,2]
[398477620,1765716353717,-500.0,0.00016976,2]
[398477621,1765716353746,-491.8555183,0.00016976,2]
[398477622,1765716353774,-500.0,0.00016976,2]
[398477623,1765716353803,-500.0,0.00016976,2]
[398477624,1765716353831,-139.07578992,0.00016976,2]
[398477625,1765716359233,150.0,9.012e-05,2]
[398477626,1765716359659,150.0,9.441e-05,2]
[398477627,1765716360061,150.0,9.87e-05,2]
[398477628,1765716385776,-300.0,0.00016975,2]
[398477629,1765716385804,-1741.32452879,0.00016976,2]
[398477637,1765716424052,150.0,9.054e-05,2]
[398477638,1765716424491,150.0,9.486e-05,2]
[398477639,1765716424947,150.0,9.917e-05,2]
[398477640,1765716425359,150.0,0.00010348,2]
[398477641,1765716425815,150.0,0.00010779,2]
[398477642,1765716426198,150.0,0.0001121,2]
[398477644,1765716618908,150.0,9.679e-05,2]
[398477645,1765716619341,150.0,0.0001014,2]
[398477646,1765716619751,150.0,0.00010601,2]
[398477675,1765716632147,-176.65647674,0.00016925,2]
[398477677,1765716632156,-664.94692396,0.00016925,2]
[398477683,1765716632199,-2.05307604,0.00016925,2]
[398477685,1765716632208,-1200.0,0.00016973,2]
[398477687,1765716632217,-5917.36094242,0.00016974,2]
[398477689,1765716632226,-458.0,0.00016974,2]
[398477690,1765716632235,-500.0,0.00016974,2]
[398477692,1765716632244,-500.0,0.00016974,2]
[398477694,1765716632254,-500.0,0.00016974,2]
[398477696,1765716632263,-500.0,0.00016974,2]
[398477698,1765716632272,-500.0,0.00016974,2]
[398477700,1765716632281,-500.0,0.00016974,2]
[398477702,1765716632290,-500.0,0.00016974,2]
[398477704,1765716632299,-500.0,0.00016974,2]
[398477706,1765716632307,-500.0,0.00016974,2]
[398477708,1765716632317,-500.0,0.00016974,2]
[398477710,1765716632326,-500.0,0.00016974,2]
[398477712,1765716632335,-500.0,0.00016974,2]
[398477714,1765716632344,-500.0,0.00016974,2]
[398477716,1765716632353,-500.0,0.00016974,2]
[398477718,1765716632362,-500.0,0.00016974,2]
[398477720,1765716632371,-266.46780644,0.00016974,2]
[398477722,1765716632381,-500.0,0.00016974,2]
[398477724,1765716632390,-500.0,0.00016974,2]
[398477726,1765716632399,-500.0,0.00016974,2]
[398477728,1765716632407,-500.0,0.00016974,2]
[398477730,1765716632416,-500.0,0.00016974,2]
[398477732,1765716632425,-375.870584,0.00016974,2]
[398477733,1765716632434,-500.0,0.00016974,2]
[398477735,1765716632443,-500.0,0.00016974,2]
[398477737,1765716632453,-500.0,0.00016974,2]
[398477739,1765716632462,-500.0,0.00016974,2]
[398477741,1765716632471,-500.0,0.00016974,2]
[398477743,1765716632479,-500.0,0.00016974,2]
[398477745,1765716632489,-500.0,0.00016974,2]
[398477747,1765716632499,-500.0,0.00016974,2]
[398477748,1765716632507,-500.0,0.00016974,2]
[398477751,1765716632516,-500.0,0.00016974,2]
[398477752,1765716632525,-500.0,0.00016974,2]
[398477754,1765716632535,-500.0,0.00016974,2]
[398477756,1765716632544,-500.0,0.00016974,2]
[398477758,1765716632554,-500.0,0.00016974,2]
[398477760,1765716632563,-500.0,0.00016974,2]
[398477762,1765716632571,-500.0,0.00016974,2]
[398477763,1765716632580,-500.0,0.00016974,2]
[398477766,1765716632589,-500.0,0.00016974,2]
[398477767,1765716632599,-500.0,0.00016974,2]
[398477769,1765716632608,-491.70303327,0.00016974,2]
[398477771,1765716632617,-500.0,0.00016974,2]
[398477774,1765716632628,-500.0,0.00016974,2]